[Event "Titled Tuesday Blitz March 21 Early 2023"]
[White "Ardila, Oscar Humberto"]
[Black "Fule, Simon"]
[WhiteFideId "4404742"]
[BlackFideId "787515"]
[WhiteElo "1911"]
[BlackElo "2370"]
[Result "0-1"]
[Round "08"]
[TimeControl "180+2"]
[Date "2023.03.21"]
[WhiteClock "0:01:03"]
[BlackClock "0:00:31"]

1. d4 {[%clk 0:02:55]}  Nf6 {[%clk 0:02:59]} 2. Nf3 {[%clk 0:02:40]}  g6 {[%clk 0:02:59]} 3. c4 {[%clk 0:02:38]}  Bg7 {[%clk 0:02:58]} 4. Nc3 {[%clk 0:02:38]}  O-O {[%clk 0:02:58]} 5. e3 {[%clk 0:02:38]}  d6 {[%clk 0:02:58]} 6. Be2 {[%clk 0:02:37]}  Nc6 {[%clk 0:02:58]} 7. O-O {[%clk 0:02:37]}  e5 {[%clk 0:02:59]} 8. dxe5 {[%clk 0:02:37]}  dxe5 {[%clk 0:03:00]} 9. Qb3 {[%clk 0:02:33]}  Qe7 {[%clk 0:02:57]} 10. Rd1 {[%clk 0:02:31]}  Nd8 {[%clk 0:02:48]} 11. Nd5 {[%clk 0:02:30]}  Nxd5 {[%clk 0:02:48]} 12. cxd5 {[%clk 0:02:30]}  c6 {[%clk 0:02:28]} 13. d6 {[%clk 0:02:26]}  Qe8 {[%clk 0:02:03]} 14. Bc4 {[%clk 0:02:18]}  Be6 {[%clk 0:01:55]} 15. Ng5 {[%clk 0:02:14]}  Bxc4 {[%clk 0:01:49]} 16. Qxc4 {[%clk 0:02:14]}  Qd7 {[%clk 0:01:44]} 17. e4 {[%clk 0:02:09]}  h6 {[%clk 0:01:33]} 18. Nf3 {[%clk 0:02:08]}  Re8 {[%clk 0:01:24]} 19. Be3 {[%clk 0:02:07]}  b6 {[%clk 0:01:21]} 20. Rac1 {[%clk 0:02:06]}  Re6 {[%clk 0:01:13]} 21. Qb4 {[%clk 0:01:52]}  c5 {[%clk 0:01:07]} 22. Qd2 {[%clk 0:01:51]}  Nb7 {[%clk 0:01:04]} 23. Bxh6 {[%clk 0:01:50]}  Rxd6 {[%clk 0:01:03]} 24. Qe2 {[%clk 0:01:31]}  Bxh6 {[%clk 0:00:57]} 25. Rxd6 {[%clk 0:01:31]}  Qxd6 {[%clk 0:00:54]} 26. Rd1 {[%clk 0:01:31]}  Qe6 {[%clk 0:00:51]} 27. b3 {[%clk 0:01:30]}  Rd8 {[%clk 0:00:50]} 28. h3 {[%clk 0:01:26]}  Rxd1+ {[%clk 0:00:48]} 29. Qxd1 {[%clk 0:01:26]}  Qd6 {[%clk 0:00:48]} 30. Qe2 {[%clk 0:01:26]}  Nd8 {[%clk 0:00:45]} 31. g4 {[%clk 0:01:23]}  Bf4 {[%clk 0:00:42]} 32. Kg2 {[%clk 0:01:22]}  Ne6 {[%clk 0:00:41]} 33. Qa6 {[%clk 0:01:21]}  Qd7 {[%clk 0:00:35]} 34. h4 {[%clk 0:01:08]}  Nd4 {[%clk 0:00:34]} 35. Nh2 {[%clk 0:01:07]}  Bxh2 {[%clk 0:00:32]} 36. Kxh2 {[%clk 0:01:04]}  Qxg4 {[%clk 0:00:32]} 37. Qxa7 {[%clk 0:01:03]}  Nf3+ {[%clk 0:00:31]} 38. Kh1 {[%clk 0:01:03]}  Qg1# {[%clk 0:00:31]} 0-1


[Site "https://www.chess.com"]

[Event "Titled Tuesday Blitz March 21 Early 2023"]
[White "Manon-og, Ramon Jr."]
[Black "Kiseleva, Arina"]
[WhiteFideId "5200776"]
[BlackFideId "4164989"]
[WhiteElo "2328"]
[BlackElo "1756"]
[Result "1-0"]
[Round "08"]
[TimeControl "180+2"]
[Date "2023.03.21"]
[WhiteClock "0:01:53"]
[BlackClock "0:00:41"]

1. e4 {[%clk 0:02:58]}  c6 {[%clk 0:02:59]} 2. d4 {[%clk 0:02:57]}  d5 {[%clk 0:03:00]} 3. e5 {[%clk 0:02:57]}  Bf5 {[%clk 0:02:59]} 4. Nd2 {[%clk 0:02:58]}  e6 {[%clk 0:02:47]} 5. Nb3 {[%clk 0:02:58]}  a6 {[%clk 0:02:37]} 6. Nf3 {[%clk 0:02:57]}  h6 {[%clk 0:02:36]} 7. Be2 {[%clk 0:02:57]}  Ne7 {[%clk 0:02:27]} 8. O-O {[%clk 0:02:55]}  c5 {[%clk 0:02:27]} 9. Nxc5 {[%clk 0:02:54]}  Qc7 {[%clk 0:02:23]} 10. c3 {[%clk 0:02:44]}  Nec6 {[%clk 0:02:22]} 11. Nb3 {[%clk 0:02:37]}  Nd7 {[%clk 0:02:21]} 12. Bd3 {[%clk 0:02:37]}  Bxd3 {[%clk 0:02:18]} 13. Qxd3 {[%clk 0:02:38]}  Be7 {[%clk 0:02:18]} 14. Bf4 {[%clk 0:02:32]}  O-O {[%clk 0:02:13]} 15. Bg3 {[%clk 0:02:26]}  b5 {[%clk 0:02:09]} 16. Rac1 {[%clk 0:02:23]}  Na5 {[%clk 0:02:06]} 17. Nxa5 {[%clk 0:02:22]}  Qxa5 {[%clk 0:02:06]} 18. a3 {[%clk 0:02:23]}  Qc7 {[%clk 0:01:53]} 19. Nh4 {[%clk 0:02:22]}  Nb6 {[%clk 0:01:50]} 20. f4 {[%clk 0:02:21]}  Nc4 {[%clk 0:01:47]} 21. Rf2 {[%clk 0:02:21]}  a5 {[%clk 0:01:28]} 22. f5 {[%clk 0:02:19]}  Bxh4 {[%clk 0:01:18]} 23. Bxh4 {[%clk 0:02:19]}  Rfc8 {[%clk 0:01:11]} 24. Rcf1 {[%clk 0:02:17]}  b4 {[%clk 0:01:05]} 25. fxe6 {[%clk 0:02:16]}  fxe6 {[%clk 0:01:05]} 26. Qg6 {[%clk 0:02:14]}  Ra7 {[%clk 0:00:50]} 27. Qxe6+ {[%clk 0:02:09]}  Kh8 {[%clk 0:00:46]} 28. g4 {[%clk 0:01:58]}  Ne3 {[%clk 0:00:43]} 29. Rf8+ {[%clk 0:01:53]}  Rxf8 {[%clk 0:00:42]} 30. Rxf8+ {[%clk 0:01:53]}  Kh7 {[%clk 0:00:42]} 31. Qg8+ {[%clk 0:01:53]}  Kg6 {[%clk 0:00:41]} 32. Rf6# {[%clk 0:01:53]} 1-0


[Site "https://www.chess.com"]

[Event "Titled Tuesday Blitz March 21 Early 2023"]
[White "Kornyukov, Alexey"]
[Black "Korpics, Zsolt"]
[WhiteFideId "4150457"]
[BlackFideId "705241"]
[WhiteElo "2352"]
[BlackElo "2316"]
[Result "1/2-1/2"]
[Round "08"]
[TimeControl "180+2"]
[Date "2023.03.21"]
[WhiteClock "0:00:04"]
[BlackClock "0:00:11"]

1. e4 {[%clk 0:03:00]}  c5 {[%clk 0:03:00]} 2. Nf3 {[%clk 0:02:59]}  e6 {[%clk 0:03:00]} 3. c3 {[%clk 0:02:59]}  Nf6 {[%clk 0:02:59]} 4. e5 {[%clk 0:02:58]}  Nd5 {[%clk 0:02:58]} 5. d4 {[%clk 0:02:58]}  cxd4 {[%clk 0:02:58]} 6. cxd4 {[%clk 0:02:59]}  b6 {[%clk 0:02:55]} 7. Nc3 {[%clk 0:02:58]}  Nxc3 {[%clk 0:02:54]} 8. bxc3 {[%clk 0:02:58]}  Ba6 {[%clk 0:02:54]} 9. Bxa6 {[%clk 0:02:58]}  Nxa6 {[%clk 0:02:55]} 10. O-O {[%clk 0:02:58]}  Qc8 {[%clk 0:02:52]} 11. Qd3 {[%clk 0:02:55]}  Nc7 {[%clk 0:02:47]} 12. Bg5 {[%clk 0:02:50]}  Qa6 {[%clk 0:02:44]} 13. c4 {[%clk 0:02:48]}  d5 {[%clk 0:02:40]} 14. Rfc1 {[%clk 0:02:32]}  h6 {[%clk 0:02:26]} 15. Bh4 {[%clk 0:02:18]}  g5 {[%clk 0:02:14]} 16. Bg3 {[%clk 0:02:15]}  Bg7 {[%clk 0:02:12]} 17. Qe3 {[%clk 0:01:47]}  dxc4 {[%clk 0:02:01]} 18. Qe4 {[%clk 0:01:37]}  Nd5 {[%clk 0:01:59]} 19. Nd2 {[%clk 0:01:21]}  c3 {[%clk 0:01:52]} 20. Rxc3 {[%clk 0:01:16]}  O-O {[%clk 0:01:46]} 21. Rc2 {[%clk 0:01:11]}  Rac8 {[%clk 0:01:44]} 22. h4 {[%clk 0:01:09]}  Nc3 {[%clk 0:01:36]} 23. Rxc3 {[%clk 0:00:57]}  Rxc3 {[%clk 0:01:32]} 24. hxg5 {[%clk 0:00:55]}  hxg5 {[%clk 0:01:31]} 25. Qg4 {[%clk 0:00:51]}  Qd3 {[%clk 0:01:12]} 26. Qxg5 {[%clk 0:00:45]}  Rc2 {[%clk 0:01:08]} 27. Nf3 {[%clk 0:00:37]}  Rfc8 {[%clk 0:01:06]} 28. Bf4 {[%clk 0:00:29]}  Qg6 {[%clk 0:01:01]} 29. Qh4 {[%clk 0:00:26]}  f6 {[%clk 0:00:43]} 30. exf6 {[%clk 0:00:25]}  Bxf6 {[%clk 0:00:43]} 31. Qh3 {[%clk 0:00:24]}  Qf5 {[%clk 0:00:41]} 32. Qg3+ {[%clk 0:00:24]}  Kf7 {[%clk 0:00:39]} 33. Ne5+ {[%clk 0:00:20]}  Bxe5 {[%clk 0:00:39]} 34. dxe5 {[%clk 0:00:13]}  Rg8 {[%clk 0:00:38]} 35. Qf3 {[%clk 0:00:11]}  Rc4 {[%clk 0:00:29]} 36. Qb7+ {[%clk 0:00:09]}  Kg6 {[%clk 0:00:28]} 37. Bg3 {[%clk 0:00:10]}  Kh6 {[%clk 0:00:26]} 38. Qe7 {[%clk 0:00:08]}  Rcg4 {[%clk 0:00:23]} 39. Rd1 {[%clk 0:00:07]}  Rxg3 {[%clk 0:00:15]} 40. fxg3 {[%clk 0:00:06]}  Qxe5 {[%clk 0:00:16]} 41. Qh4+ {[%clk 0:00:06]}  Qh5 {[%clk 0:00:14]} 42. Qf6+ {[%clk 0:00:05]}  Qg6 {[%clk 0:00:14]} 43. Qh4+ {[%clk 0:00:05]}  Qh5 {[%clk 0:00:14]} 44. Qf6+ {[%clk 0:00:04]}  Qg6 {[%clk 0:00:14]} 45. Qh4+ {[%clk 0:00:04]}  Qh5 {[%clk 0:00:11]} 1/2-1/2


[Site "https://www.chess.com"]

[Event "Titled Tuesday Blitz March 21 Early 2023"]
[White "Palacio,Igor Da Paz"]
[Black "Piesik, Piotr"]
[WhiteFideId "2121140"]
[BlackFideId "1136194"]
[WhiteElo "2126"]
[BlackElo "2311"]
[Result "0-1"]
[Round "08"]
[TimeControl "180+2"]
[Date "2023.03.21"]
[WhiteClock "0:00:01"]
[BlackClock "0:00:50"]

1. e4 {[%clk 0:03:00]}  g6 {[%clk 0:02:59]} 2. Nc3 {[%clk 0:03:00]}  Bg7 {[%clk 0:03:00]} 3. Nf3 {[%clk 0:03:00]}  c6 {[%clk 0:03:00]} 4. g3 {[%clk 0:03:00]}  d5 {[%clk 0:02:59]} 5. Bg2 {[%clk 0:03:00]}  d4 {[%clk 0:02:57]} 6. Nb1 {[%clk 0:03:00]}  c5 {[%clk 0:02:57]} 7. d3 {[%clk 0:02:59]}  Nc6 {[%clk 0:02:57]} 8. O-O {[%clk 0:02:59]}  e5 {[%clk 0:02:57]} 9. Nbd2 {[%clk 0:02:59]}  Nge7 {[%clk 0:02:56]} 10. a4 {[%clk 0:02:59]}  O-O {[%clk 0:02:55]} 11. Nc4 {[%clk 0:02:59]}  b6 {[%clk 0:02:46]} 12. Ne1 {[%clk 0:02:54]}  Rb8 {[%clk 0:02:45]} 13. f4 {[%clk 0:02:54]}  a6 {[%clk 0:02:43]} 14. Nf3 {[%clk 0:02:53]}  exf4 {[%clk 0:02:40]} 15. Bxf4 {[%clk 0:02:51]}  Rb7 {[%clk 0:02:38]} 16. Nd6 {[%clk 0:02:50]}  Ra7 {[%clk 0:02:36]} 17. Nxc8 {[%clk 0:02:50]}  Qxc8 {[%clk 0:02:37]} 18. h3 {[%clk 0:02:39]}  h6 {[%clk 0:02:37]} 19. Kh2 {[%clk 0:02:39]}  Qe6 {[%clk 0:02:35]} 20. Qe2 {[%clk 0:02:33]}  Rfa8 {[%clk 0:02:33]} 21. Qf2 {[%clk 0:02:27]}  b5 {[%clk 0:02:32]} 22. g4 {[%clk 0:02:18]}  c4 {[%clk 0:02:27]} 23. Bg3 {[%clk 0:01:54]}  Nc8 {[%clk 0:02:07]} 24. Rae1 {[%clk 0:01:31]}  cxd3 {[%clk 0:02:04]} 25. cxd3 {[%clk 0:01:31]}  bxa4 {[%clk 0:01:56]} 26. Ra1 {[%clk 0:01:27]}  Nb6 {[%clk 0:01:55]} 27. Rfc1 {[%clk 0:01:22]}  Rc8 {[%clk 0:01:49]} 28. Nd2 {[%clk 0:01:21]}  Ne5 {[%clk 0:01:43]} 29. Qe2 {[%clk 0:01:18]}  Rac7 {[%clk 0:01:39]} 30. Rxc7 {[%clk 0:01:17]}  Rxc7 {[%clk 0:01:40]} 31. Qd1 {[%clk 0:00:48]}  Qc6 {[%clk 0:01:33]} 32. Nf3 {[%clk 0:00:39]}  Qc5 {[%clk 0:01:23]} 33. Kh1 {[%clk 0:00:28]}  Rc8 {[%clk 0:01:20]} 34. Nxe5 {[%clk 0:00:26]}  Bxe5 {[%clk 0:01:19]} 35. Bf2 {[%clk 0:00:26]}  Qc2 {[%clk 0:01:17]} 36. Be1 {[%clk 0:00:15]}  Qxd1 {[%clk 0:01:14]} 37. Rxd1 {[%clk 0:00:16]}  Rc2 {[%clk 0:01:14]} 38. Rb1 {[%clk 0:00:15]}  Nd7 {[%clk 0:01:13]} 39. Kg1 {[%clk 0:00:13]}  Nc5 {[%clk 0:01:12]} 40. Bf1 {[%clk 0:00:14]}  Bf4 {[%clk 0:01:09]} 41. Bb4 {[%clk 0:00:14]}  Be3+ {[%clk 0:01:09]} 42. Kh1 {[%clk 0:00:12]}  Ne6 {[%clk 0:01:06]} 43. Bd6 {[%clk 0:00:07]}  Bf4 {[%clk 0:01:05]} 44. Be7 {[%clk 0:00:04]}  Kg7 {[%clk 0:01:02]} 45. Ra1 {[%clk 0:00:01]}  Rh2+ {[%clk 0:00:54]} 46. Kg1 {[%clk 0:00:01]}  Rxb2 {[%clk 0:00:55]} 47. Rxa4 {[%clk 0:00:01]}  Be3+ {[%clk 0:00:53]} 48. Kh1 {[%clk 0:00:01]}  Rb1 {[%clk 0:00:50]} 0-1


[Site "https://www.chess.com"]

[Event "Titled Tuesday Blitz March 21 Early 2023"]
[White "Sabar, Ethmane Daouda"]
[Black "Vivas Zamora, Fabian Ernesto"]
[WhiteFideId "19600097"]
[BlackFideId "3902480"]
[WhiteElo "1950"]
[BlackElo "2262"]
[Result "0-1"]
[Round "08"]
[TimeControl "180+2"]
[Date "2023.03.21"]
[WhiteClock "0:00:19"]
[BlackClock "0:02:36"]

1. e4 {[%clk 0:02:29]}  e5 {[%clk 0:02:59]} 2. Bc4 {[%clk 0:02:28]}  Nf6 {[%clk 0:02:58]} 3. d4 {[%clk 0:02:28]}  exd4 {[%clk 0:02:56]} 4. Nf3 {[%clk 0:02:25]}  Nc6 {[%clk 0:02:55]} 5. O-O {[%clk 0:02:17]}  Nxe4 {[%clk 0:02:53]} 6. Re1 {[%clk 0:02:05]}  d5 {[%clk 0:02:53]} 7. Bxd5 {[%clk 0:02:06]}  Qxd5 {[%clk 0:02:54]} 8. Nc3 {[%clk 0:02:06]}  Qd7 {[%clk 0:02:54]} 9. Nxe4 {[%clk 0:01:43]}  Be7 {[%clk 0:02:54]} 10. Bg5 {[%clk 0:00:46]}  O-O {[%clk 0:02:51]} 11. Bxe7 {[%clk 0:00:45]}  Qxe7 {[%clk 0:02:49]} 12. Nxd4 {[%clk 0:00:36]}  Bd7 {[%clk 0:02:47]} 13. Nxc6 {[%clk 0:00:25]}  Bxc6 {[%clk 0:02:47]} 14. Ng3 {[%clk 0:00:22]}  Qb4 {[%clk 0:02:42]} 15. b3 {[%clk 0:00:19]}  Rad8 {[%clk 0:02:37]} 16. Qg4 {[%clk 0:00:19]}  Qxg4 {[%clk 0:02:36]} 0-1


[Site "https://www.chess.com"]

[Event "Titled Tuesday Blitz March 21 Early 2023"]
[White "Levitan, Caleb Levi"]
[Black "Rose, Felix"]
[WhiteFideId "14332620"]
[BlackFideId "5105722"]
[WhiteElo "1963"]
[BlackElo "2039"]
[Result "1/2-1/2"]
[Round "08"]
[TimeControl "180+2"]
[Date "2023.03.21"]
[WhiteClock "0:00:18"]
[BlackClock "0:00:21"]

1. e4 {[%clk 0:03:00]}  e5 {[%clk 0:02:59]} 2. Nf3 {[%clk 0:02:57]}  Nc6 {[%clk 0:02:59]} 3. Bc4 {[%clk 0:02:57]}  Nf6 {[%clk 0:02:58]} 4. d3 {[%clk 0:02:57]}  Bc5 {[%clk 0:02:58]} 5. c3 {[%clk 0:02:57]}  d6 {[%clk 0:02:58]} 6. O-O {[%clk 0:02:54]}  O-O {[%clk 0:02:54]} 7. b4 {[%clk 0:02:44]}  Bb6 {[%clk 0:02:54]} 8. a4 {[%clk 0:02:43]}  a5 {[%clk 0:02:52]} 9. b5 {[%clk 0:02:43]}  Ne7 {[%clk 0:02:52]} 10. Nbd2 {[%clk 0:02:31]}  Ng6 {[%clk 0:02:51]} 11. Re1 {[%clk 0:02:21]}  c6 {[%clk 0:02:37]} 12. Nf1 {[%clk 0:02:06]}  d5 {[%clk 0:02:35]} 13. exd5 {[%clk 0:02:01]}  cxd5 {[%clk 0:02:34]} 14. Bb3 {[%clk 0:02:00]}  Qc7 {[%clk 0:02:32]} 15. Bb2 {[%clk 0:01:54]}  Re8 {[%clk 0:02:29]} 16. Ng3 {[%clk 0:01:53]}  Ng4 {[%clk 0:02:05]} 17. d4 {[%clk 0:01:28]}  Be6 {[%clk 0:01:29]} 18. h3 {[%clk 0:01:25]}  exd4 {[%clk 0:01:14]} 19. hxg4 {[%clk 0:01:14]}  dxc3 {[%clk 0:01:13]} 20. Bc1 {[%clk 0:01:03]}  Qxg3 {[%clk 0:01:11]} 21. Be3 {[%clk 0:00:49]}  Bxe3 {[%clk 0:01:08]} 22. Rxe3 {[%clk 0:00:46]}  Qxg4 {[%clk 0:01:00]} 23. Rxc3 {[%clk 0:00:41]}  Nf4 {[%clk 0:00:56]} 24. g3 {[%clk 0:00:30]}  d4 {[%clk 0:00:50]} 25. Nxd4 {[%clk 0:00:18]}  Nh3+ {[%clk 0:00:41]} 26. Kg2 {[%clk 0:00:17]}  Nf4+ {[%clk 0:00:36]} 27. Kg1 {[%clk 0:00:17]}  Nh3+ {[%clk 0:00:22]} 28. Kg2 {[%clk 0:00:17]}  Nf4+ {[%clk 0:00:21]} 29. Kg1 {[%clk 0:00:18]} 1/2-1/2


[Site "https://www.chess.com"]

[Event "Titled Tuesday Blitz March 21 Early 2023"]
[White "Vargas Rodriguez, Wilver"]
[Black "Simonovic, Miroslav"]
[WhiteFideId "3509672"]
[BlackFideId "919152"]
[WhiteElo "2238"]
[BlackElo "2042"]
[Result "0-1"]
[Round "08"]
[TimeControl "180+2"]
[Date "2023.03.21"]
[WhiteClock "0:00:01"]
[BlackClock "0:00:10"]

1. e4 {[%clk 0:03:00]}  c5 {[%clk 0:02:58]} 2. Nf3 {[%clk 0:03:00]}  Nc6 {[%clk 0:02:57]} 3. Nc3 {[%clk 0:02:51]}  e5 {[%clk 0:02:53]} 4. Bc4 {[%clk 0:02:47]}  g6 {[%clk 0:02:52]} 5. O-O {[%clk 0:02:46]}  Bg7 {[%clk 0:02:52]} 6. d4 {[%clk 0:02:40]}  cxd4 {[%clk 0:02:51]} 7. Nb5 {[%clk 0:02:35]}  d6 {[%clk 0:02:46]} 8. Ng5 {[%clk 0:02:29]}  Nh6 {[%clk 0:02:46]} 9. c3 {[%clk 0:02:20]}  a6 {[%clk 0:02:44]} 10. Na3 {[%clk 0:02:09]}  O-O {[%clk 0:02:43]} 11. cxd4 {[%clk 0:02:06]}  Nxd4 {[%clk 0:02:44]} 12. Be3 {[%clk 0:02:03]}  Ne6 {[%clk 0:02:36]} 13. Qd2 {[%clk 0:01:43]}  Ng4 {[%clk 0:02:36]} 14. Nxe6 {[%clk 0:01:06]}  Bxe6 {[%clk 0:02:34]} 15. Bd5 {[%clk 0:01:00]}  Nxe3 {[%clk 0:02:30]} 16. fxe3 {[%clk 0:00:58]}  Qe7 {[%clk 0:02:14]} 17. Nc4 {[%clk 0:00:55]}  Rfd8 {[%clk 0:01:51]} 18. Nb6 {[%clk 0:00:47]}  Rab8 {[%clk 0:01:40]} 19. Rac1 {[%clk 0:00:47]}  Bh6 {[%clk 0:01:26]} 20. Rc3 {[%clk 0:00:47]}  Qg5 {[%clk 0:00:47]} 21. Qf2 {[%clk 0:00:44]}  Rf8 {[%clk 0:00:41]} 22. Kh1 {[%clk 0:00:42]}  Bxd5 {[%clk 0:00:37]} 23. Nxd5 {[%clk 0:00:41]}  f5 {[%clk 0:00:38]} 24. exf5 {[%clk 0:00:35]}  Rxf5 {[%clk 0:00:37]} 25. Qe2 {[%clk 0:00:32]}  Rxf1+ {[%clk 0:00:35]} 26. Qxf1 {[%clk 0:00:33]}  Rf8 {[%clk 0:00:36]} 27. Qe2 {[%clk 0:00:32]}  Qg4 {[%clk 0:00:23]} 28. Ne7+ {[%clk 0:00:28]}  Kg7 {[%clk 0:00:23]} 29. Qe1 {[%clk 0:00:20]}  Qe6 {[%clk 0:00:21]} 30. Rc7 {[%clk 0:00:17]}  Rf7 {[%clk 0:00:21]} 31. Qh4 {[%clk 0:00:17]}  g5 {[%clk 0:00:20]} 32. Qc4 {[%clk 0:00:11]}  Qxc4 {[%clk 0:00:15]} 33. Nf5+ {[%clk 0:00:11]}  Kg6 {[%clk 0:00:14]} 34. Rxc4 {[%clk 0:00:09]}  Rxf5 {[%clk 0:00:13]} 35. Kg1 {[%clk 0:00:09]}  Bf8 {[%clk 0:00:13]} 36. Rc7 {[%clk 0:00:08]}  Rf7 {[%clk 0:00:13]} 37. Rc8 {[%clk 0:00:07]}  Kg7 {[%clk 0:00:13]} 38. g3 {[%clk 0:00:07]}  Rd7 {[%clk 0:00:12]} 39. Kf2 {[%clk 0:00:05]}  d5 {[%clk 0:00:13]} 40. Re8 {[%clk 0:00:05]}  Bd6 {[%clk 0:00:11]} 41. Kf3 {[%clk 0:00:03]}  d4 {[%clk 0:00:11]} 42. exd4 {[%clk 0:00:02]}  exd4 {[%clk 0:00:12]} 43. Ke4 {[%clk 0:00:02]}  Bc7 {[%clk 0:00:11]} 44. Kd3 {[%clk 0:00:02]}  h6 {[%clk 0:00:11]} 45. b4 {[%clk 0:00:01]}  a5 {[%clk 0:00:10]} 0-1


[Site "https://www.chess.com"]

[Event "Titled Tuesday Blitz March 21 Early 2023"]
[White "Martin Carmona, Gaston Manuel"]
[Black "Hernandez Bonilla, Amelia"]
[WhiteFideId "22284567"]
[BlackFideId "3900193"]
[WhiteElo "2245"]
[BlackElo "2183"]
[Result "1-0"]
[Round "08"]
[TimeControl "180+2"]
[Date "2023.03.21"]
[WhiteClock "0:00:16"]
[BlackClock "0:00:40"]

1. Nf3 {[%clk 0:02:56]}  d5 {[%clk 0:02:59]} 2. d4 {[%clk 0:02:55]}  Nf6 {[%clk 0:02:59]} 3. c4 {[%clk 0:02:55]}  e6 {[%clk 0:02:59]} 4. g3 {[%clk 0:02:56]}  Bb4+ {[%clk 0:02:59]} 5. Bd2 {[%clk 0:02:55]}  a5 {[%clk 0:02:59]} 6. Bg2 {[%clk 0:02:56]}  O-O {[%clk 0:02:59]} 7. O-O {[%clk 0:02:56]}  dxc4 {[%clk 0:02:49]} 8. Qc2 {[%clk 0:02:54]}  Nc6 {[%clk 0:02:41]} 9. Qxc4 {[%clk 0:02:50]}  Bd7 {[%clk 0:02:36]} 10. a3 {[%clk 0:02:47]}  Bxd2 {[%clk 0:02:36]} 11. Nbxd2 {[%clk 0:02:48]}  a4 {[%clk 0:02:31]} 12. Rac1 {[%clk 0:02:41]}  Qe7 {[%clk 0:02:19]} 13. e4 {[%clk 0:02:33]}  Rfc8 {[%clk 0:02:16]} 14. e5 {[%clk 0:02:30]}  Nd5 {[%clk 0:02:16]} 15. Ne4 {[%clk 0:02:29]}  Na5 {[%clk 0:02:10]} 16. Qc5 {[%clk 0:02:00]}  Qxc5 {[%clk 0:02:01]} 17. Nxc5 {[%clk 0:01:58]}  Bc6 {[%clk 0:02:01]} 18. Nd2 {[%clk 0:01:51]}  Rd8 {[%clk 0:01:48]} 19. Rfd1 {[%clk 0:01:45]}  Ne7 {[%clk 0:01:46]} 20. Nc4 {[%clk 0:01:28]}  Bxg2 {[%clk 0:01:44]} 21. Nxa5 {[%clk 0:01:22]}  Rxa5 {[%clk 0:01:28]} 22. Kxg2 {[%clk 0:01:21]}  Rb5 {[%clk 0:01:28]} 23. Nxa4 {[%clk 0:01:15]}  Ra8 {[%clk 0:01:16]} 24. Rxc7 {[%clk 0:01:05]}  Nf5 {[%clk 0:01:12]} 25. b4 {[%clk 0:00:43]}  h5 {[%clk 0:01:09]} 26. Nc3 {[%clk 0:00:37]}  Rb6 {[%clk 0:01:04]} 27. d5 {[%clk 0:00:36]}  exd5 {[%clk 0:00:55]} 28. Nxd5 {[%clk 0:00:37]}  Re6 {[%clk 0:00:54]} 29. Rd3 {[%clk 0:00:24]}  Rxe5 {[%clk 0:00:52]} 30. Nf4 {[%clk 0:00:25]}  g6 {[%clk 0:00:44]} 31. Rdd7 {[%clk 0:00:24]}  Nh6 {[%clk 0:00:43]} 32. Rxb7 {[%clk 0:00:20]}  Rxa3 {[%clk 0:00:43]} 33. Nxg6 {[%clk 0:00:16]}  fxg6 {[%clk 0:00:40]} 34. Rd8+ {[%clk 0:00:16]} 1-0


[Site "https://www.chess.com"]

[Event "Titled Tuesday Blitz March 21 Early 2023"]
[White "Vargas Pereda, Jesus Manue"]
[Black "Mrudul Dehankar"]
[WhiteFideId "5115710"]
[BlackFideId "25096990"]
[WhiteElo "1914"]
[BlackElo "2139"]
[Result "0-1"]
[Round "08"]
[TimeControl "180+2"]
[Date "2023.03.21"]
[WhiteClock "0:00:35"]
[BlackClock "0:00:09"]

1. d4 {[%clk 0:02:49]}  Nf6 {[%clk 0:02:57]} 2. Bf4 {[%clk 0:02:48]}  e6 {[%clk 0:02:55]} 3. e3 {[%clk 0:02:48]}  b6 {[%clk 0:02:52]} 4. Bd3 {[%clk 0:02:46]}  Bb7 {[%clk 0:02:52]} 5. Nf3 {[%clk 0:02:46]}  c5 {[%clk 0:02:53]} 6. c3 {[%clk 0:02:46]}  Be7 {[%clk 0:02:49]} 7. Nbd2 {[%clk 0:02:45]}  d6 {[%clk 0:02:50]} 8. e4 {[%clk 0:02:43]}  cxd4 {[%clk 0:02:45]} 9. cxd4 {[%clk 0:02:42]}  Nbd7 {[%clk 0:02:46]} 10. O-O {[%clk 0:02:42]}  O-O {[%clk 0:02:37]} 11. Rc1 {[%clk 0:02:36]}  Nh5 {[%clk 0:02:35]} 12. Be3 {[%clk 0:02:34]}  e5 {[%clk 0:02:24]} 13. Nxe5 {[%clk 0:02:28]}  Nxe5 {[%clk 0:02:02]} 14. dxe5 {[%clk 0:02:25]}  dxe5 {[%clk 0:02:00]} 15. Qxh5 {[%clk 0:01:54]}  Qxd3 {[%clk 0:01:58]} 16. Rc7 {[%clk 0:01:52]}  Bb4 {[%clk 0:01:09]} 17. Rxb7 {[%clk 0:01:44]}  Bxd2 {[%clk 0:01:08]} 18. Rd1 {[%clk 0:01:42]}  Qxe4 {[%clk 0:01:00]} 19. Re7 {[%clk 0:01:21]}  Bxe3 {[%clk 0:00:56]} 20. Rxe5 {[%clk 0:01:15]}  Bxf2+ {[%clk 0:00:54]} 21. Kxf2 {[%clk 0:01:15]}  Qb4 {[%clk 0:00:44]} 22. Qe2 {[%clk 0:01:01]}  g6 {[%clk 0:00:40]} 23. a3 {[%clk 0:00:55]}  Qf4+ {[%clk 0:00:35]} 24. Kg1 {[%clk 0:00:54]}  Rad8 {[%clk 0:00:31]} 25. Rf1 {[%clk 0:00:52]}  Qd4+ {[%clk 0:00:24]} 26. Kh1 {[%clk 0:00:52]}  Qd2 {[%clk 0:00:23]} 27. h3 {[%clk 0:00:48]}  Qxe2 {[%clk 0:00:20]} 28. Rxe2 {[%clk 0:00:48]}  Rfe8 {[%clk 0:00:20]} 29. Rc2 {[%clk 0:00:48]}  Re7 {[%clk 0:00:17]} 30. Rfc1 {[%clk 0:00:47]}  h5 {[%clk 0:00:13]} 31. Rc7 {[%clk 0:00:46]}  Rdd7 {[%clk 0:00:11]} 32. Rc8+ {[%clk 0:00:46]}  Kg7 {[%clk 0:00:11]} 33. Kh2 {[%clk 0:00:45]}  h4 {[%clk 0:00:11]} 34. Kg1 {[%clk 0:00:44]}  Rd2 {[%clk 0:00:11]} 35. R1c2 {[%clk 0:00:44]}  Ree2 {[%clk 0:00:10]} 36. Rxd2 {[%clk 0:00:39]}  Rxd2 {[%clk 0:00:10]} 37. b4 {[%clk 0:00:40]}  Ra2 {[%clk 0:00:09]} 38. Rc3 {[%clk 0:00:39]}  a5 {[%clk 0:00:10]} 39. bxa5 {[%clk 0:00:39]}  bxa5 {[%clk 0:00:10]} 40. Rf3 {[%clk 0:00:37]}  g5 {[%clk 0:00:10]} 41. Rc3 {[%clk 0:00:36]}  Kg6 {[%clk 0:00:10]} 42. Rc6+ {[%clk 0:00:35]}  f6 {[%clk 0:00:10]} 43. Rc2 {[%clk 0:00:35]}  Rxc2 {[%clk 0:00:09]} 0-1


[Site "https://www.chess.com"]